bitfinex/quotes_SOLUSD_20250130
["timestamp","ask_amount","ask_price","bid_price","bid_amount"]
[1738252009946,0.03,243.45,243.44,36.97297589]
[1738252010151,0.03,243.45,243.44,23.56112736]
[1738252010360,0.03,243.45,243.44,19.45342736]
[1738252010664,0.03,243.45,243.38,19.45342736]
[1738252010956,19.45342736,243.44,243.36,23.56242736]
[1738252011159,0.03,243.45,243.38,19.45342736]
[1738252011339,0.03,243.45,243.39,0.23242086]
[1738252012247,0.03,243.45,243.34,19.45342736]
[1738252012248,19.45342736,243.42,243.34,19.45342736]
[1738252012440,19.45342736,243.42,243.35,0.23271127]
[1738252012841,19.45342736,243.42,243.35,4.34191127]
[1738252013037,19.45342736,243.44,243.36,19.45342736]
[1738252013232,19.45342736,243.44,243.37,0.29907178]
[1738252013457,0.77032456,243.43,243.36,19.45342736]
[1738252013769,19.45342736,243.44,243.37,0.2991235]
[1738252014370,7.09187069,243.45,243.37,0.2991235]
[1738252014665,0.03,243.45,243.4,19.45342736]
[1738252014834,0.80020238,243.45,243.38,19.45342736]
[1738252015037,0.80020238,243.45,243.38,19.75237828]
[1738252015258,0.03,243.45,243.38,23.86107828]
[1738252015446,0.03,243.45,243.4,19.45342736]
[1738252015644,0.03,243.45,243.4,19.75225926]
[1738252016260,0.03,243.45,243.42,19.45342736]
[1738252016470,0.03,243.45,243.43,0.29864108]
[1738252016965,0.03,243.45,243.43,4.40654108]
[1738252017169,0.03,243.45,243.44,19.45342736]
[1738252017359,0.03,243.5,243.49,19.45342736]
[1738252019155,0.03,243.5,243.49,23.56032736]
[1738252020050,0.03,243.5,243.49,19.45342736]
[1738252020963,0.03,243.5,243.47,19.45342736]
[1738252021163,19.48342736,243.5,243.44,4.1076]
[1738252021341,19.45342736,243.48,243.42,0.29840625]
[1738252022081,19.45342736,243.44,243.38,4.1087]
[1738252022377,19.45342736,243.44,243.38,0.29897733]
[1738252022555,19.45342736,243.44,243.37,19.75237493]
[1738252023057,0.77013325,243.47,243.37,0.29894757]
[1738252023058,19.45342736,243.42,243.37,0.29894757]
[1738252023364,19.45342736,243.4,243.36,0.063]
[1738252023672,19.45342736,243.38,243.36,0.063]
[1738252024460,0.77046927,243.37,243.36,0.063]
[1738252025355,19.45342736,243.38,243.36,0.063]
[1738252025554,0.77053857,243.37,243.36,0.063]
[1738252026559,2.0,243.45,243.36,0.063]
[1738252026560,19.45342736,243.4,243.36,0.063]
[1738252026757,19.45342736,243.44,243.36,4.172]
[1738252026963,20.22386513,243.46,243.37,19.75239888]
[1738252027163,0.77043777,243.46,243.39,19.45342736]
[1738252027356,1.6372,243.47,243.4,4.40727493]
[1738252027557,1.6372,243.47,243.41,19.75217524]
[1738252027871,25.97262736,243.48,243.42,0.29872515]
[1738252028062,6.5192,243.48,243.42,0.29872515]
[1738252028264,0.03,243.48,243.43,19.75215503]
[1738252028456,0.03,243.48,243.47,19.45342736]
[1738252029489,0.03,243.48,243.47,23.56062736]
[1738252030693,0.03,243.5,243.49,20.0]
[1738252030871,19.45342736,243.63,243.5,20.0]
[1738252031065,19.45342736,243.63,243.56,19.45342736]
[1738252031578,6.78137516,243.64,243.57,4.1055]
[1738252031579,6.0114,243.64,243.57,4.1055]
[1738252031783,19.45342736,243.59,243.51,0.2978199]
[1738252031984,19.42324853,243.64,243.46,4.1074]
[1738252031985,19.45342736,243.53,243.46,4.1074]
[1738252032583,19.45342736,243.57,243.48,19.45342736]
[1738252032785,19.45342736,243.57,243.49,0.29820789]
[1738252033084,19.45342736,243.55,243.47,0.29826591]
[1738252033289,19.45342736,243.57,243.48,19.45342736]
[1738252033584,19.45342736,243.57,243.41,1.12549]
[1738252033585,19.45342736,243.59,243.51,4.1066]
[1738252033882,19.45342736,243.61,243.52,19.45342736]
[1738252034183,19.45342736,243.61,243.53,0.29791068]
[1738252034354,0.76980202,243.6,243.53,0.29791068]
[1738252034559,20.22325094,243.61,243.53,0.29791068]
[1738252034881,20.22325094,243.61,243.52,19.45342736]
[1738252034882,19.45342736,243.59,243.52,0.29807847]
[1738252035070,4.1048,243.62,243.5,19.45342736]
[1738252035071,19.45342736,243.57,243.5,19.45342736]
[1738252035385,19.45342736,243.59,243.51,0.29818657]
[1738252035679,19.45342736,243.59,243.52,19.45342736]
[1738252036189,20.22332959,243.61,243.53,0.29802854]
[1738252036576,19.45342736,243.61,243.53,0.29802854]
[1738252037186,6.0114,243.64,243.53,0.29802854]
[1738252037187,19.45342736,243.59,243.53,0.29802854]
[1738252037377,0.7698972,243.58,243.52,19.45342736]
[1738252037572,19.45342736,243.59,243.52,23.85788745]
[1738252037771,19.45342736,243.61,243.54,19.45342736]
[1738252037967,19.45342736,243.61,243.55,0.29777715]
[1738252038167,19.45342736,243.61,243.54,19.75132856]
[1738252039271,19.45342736,243.61,243.54,23.85732856]
[1738252039463,19.45342736,243.61,243.55,0.29783688]
[1738252039696,19.45342736,243.63,243.55,0.29783688]
[1738252039869,0.03,243.61,243.55,0.29783688]
[1738252040468,19.48342736,243.61,243.55,0.29783688]
[1738252040680,19.48342736,243.61,243.52,23.55972736]
[1738252040681,19.45342736,243.59,243.52,23.55972736]
[1738252040885,19.48342736,243.61,243.54,19.45342736]
[1738252041060,19.45342736,243.61,243.53,19.75149816]
[1738252041398,19.45342736,243.61,243.54,4.1061]
[1738252041886,19.45342736,243.61,243.44,0.37647]
[1738252041887,19.45342736,243.57,243.5,4.1066]
[1738252042063,19.45342736,243.55,243.48,4.107]
[1738252042264,19.45342736,243.52,243.45,23.56102736]
[1738252042482,19.45342736,243.54,243.46,0.29843141]
[1738252043083,19.45342736,243.6,243.53,19.45342736]
[1738252043262,26.23454921,243.64,243.55,19.45342736]
[1738252043466,26.23454921,243.64,243.56,4.40348704]
[1738252044387,19.45342736,243.64,243.56,4.40348704]
[1738252044585,19.45342736,243.69,243.6,19.45342736]
[1738252044794,0.03,243.7,243.64,19.45342736]
[1738252044977,0.03,243.7,243.66,19.45342736]
[1738252045169,0.03,243.7,243.67,0.29707977]
[1738252045370,0.03,243.7,243.68,19.45342736]
[1738252045780,0.03,243.7,243.67,4.1038]
[1738252045979,0.03,243.7,243.67,4.40089997]
[1738252046181,0.03,243.7,243.68,19.45342736]
[1738252046385,0.03,243.7,243.69,0.29676355]
[1738252047477,0.03,243.7,243.69,4.40026355]
[1738252047785,0.03,243.7,243.69,17.81211208]
[1738252048301,0.03,243.7,243.69,0.29676355]
[1738252048484,0.03,243.7,243.69,4.40026355]
[1738252048799,0.03,243.7,243.69,19.31407208]
[1738252049000,45.00143034,243.86,243.73,20.0]
[1738252049197,20.25240125,243.86,243.77,19.45342736]
[1738252049491,20.25240125,243.86,243.78,0.29634413]
[1738252049867,19.48342736,243.86,243.78,0.29634413]
[1738252050267,0.03,243.86,243.83,19.45342736]
[1738252050482,0.03,243.86,243.85,19.45342736]
[1738252051100,0.03,243.86,243.85,33.16102027]
[1738252051300,0.03,243.86,243.85,19.74917174]
[1738252051473,0.03,243.86,243.85,0.29574438]
[1738252051975,0.03,243.86,243.82,19.45342736]
[1738252052185,0.03,243.86,243.84,19.45342736]
[1738252052386,0.03,243.86,243.85,0.29581668]
[1738252052606,0.03,243.86,243.85,14.20962521]
[1738252052804,0.03,243.86,243.85,0.29581668]
[1738252053276,0.03,243.86,243.85,13.83315521]
[1738252053677,0.03,243.86,243.85,17.80846521]
[1738252054074,0.03,243.86,243.85,4.39661668]
[1738252054302,0.03,243.86,243.85,0.29581668]
[1738252056786,0.03,243.86,243.85,13.70766521]
[1738252057608,0.03,243.95,243.85,14.20962521]
[1738252057777,0.03,243.95,243.94,23.55272736]
[1738252058298,0.03,243.95,243.94,19.45342736]
[1738252059071,0.03,243.95,243.89,0.29531768]
[1738252059309,19.45342736,243.9,243.81,0.29570894]
[1738252059484,19.45342736,243.85,243.8,0.29622591]
[1738252059695,19.45342736,243.89,243.81,19.45342736]
[1738252059986,4.0995,243.93,243.82,0.29613651]
[1738252060191,23.55292736,243.93,243.85,19.45342736]
[1738252060373,23.55292736,243.93,243.86,0.29585888]
[1738252060785,23.55292736,243.93,243.85,19.45342736]
[1738252060995,19.45342736,243.93,243.86,0.29596823]
[1738252061287,20.22220658,243.93,243.86,0.29594056]
[1738252061487,0.76877922,243.93,243.87,19.45342736]
[1738252061676,20.22220658,243.93,243.85,19.45342736]
[1738252061874,19.45342736,243.91,243.85,19.45342736]
[1738252062096,0.76889529,243.9,243.83,19.45342736]
[1738252062292,0.76889529,243.9,243.79,19.45342736]
[1738252062293,19.45342736,243.87,243.79,19.45342736]
[1738252062516,19.45342736,243.85,243.77,19.45342736]
[1738252062692,19.45342736,243.83,243.75,19.45342736]
[1738252063031,19.45342736,243.79,243.71,19.75003724]
[1738252063217,0.7692703,243.78,243.67,4.40040988]
[1738252063385,0.7692718,243.82,243.67,4.40040988]
[1738252063595,20.76912802,243.86,243.67,24.40040988]
[1738252063985,4.1008,243.85,243.68,13.41184853]
[1738252064199,4.1008,243.85,243.69,0.29651364]
[1738252064508,20.76912802,243.86,243.69,0.29651364]
[1738252064509,19.45342736,243.84,243.77,19.45342736]
[1738252064720,19.45342736,243.86,243.78,19.74988496]
[1738252064881,19.45342736,243.86,243.8,19.45342736]
[1738252064882,0.03,243.86,243.8,19.45342736]
[1738252065084,0.03,243.86,243.81,0.29627402]
[1738252065286,19.45342736,243.84,243.76,19.45342736]
[1738252065601,19.45342736,243.82,243.74,19.45342736]
[1738252065787,19.45342736,243.83,243.75,19.74994532]
[1738252065986,19.45342736,243.85,243.78,19.45342736]
[1738252066198,0.76899334,243.85,243.76,0.2963688]
[1738252066511,0.76899334,243.85,243.73,4.1028]
[1738252066687,0.76899334,243.85,243.73,0.29653398]
[1738252066900,0.76899334,243.85,243.72,0.29653398]
[1738252067093,21.0,243.83,243.68,0.2967019]
[1738252067319,19.45342736,243.7,243.62,23.85493085]
[1738252067500,19.45342736,243.68,243.62,23.85493085]
[1738252067997,0.76946298,243.78,243.67,19.45342736]
[1738252067998,19.45342736,243.75,243.67,19.45342736]
[1738252068210,21.08532736,243.77,243.69,19.45342736]
[1738252068501,20.22266863,243.83,243.76,19.45342736]
[1738252068706,1.5765,243.84,243.77,0.29657293]
[1738252069481,19.45342736,243.85,243.78,19.45342736]
[1738252069704,19.45342736,243.85,243.79,0.29640302]
[1738252069904,20.22245643,243.85,243.76,19.45342736]
[1738252070208,0.76902907,243.89,243.82,19.45342736]
[1738252070537,20.98072736,243.92,243.84,19.45342736]
[1738252070698,21.74955348,243.92,243.84,19.45342736]
[1738252071092,19.45342736,243.9,243.82,19.45342736]
[1738252071292,19.48342736,243.86,243.78,19.45342736]
[1738252071609,19.48342736,243.86,243.79,0.29636104]
[1738252071981,19.48342736,243.86,243.8,4.1017]
[1738252072180,0.03,243.86,243.81,0.29623806]
[1738252072989,0.03,243.86,243.8,23.55512736]
[1738252073197,19.48342736,243.86,243.8,4.1017]
[1738252074289,0.03,243.86,243.81,4.39755005]
[1738252074723,0.03,243.86,243.82,19.45342736]
[1738252075003,0.03,243.86,243.83,0.29609738]
[1738252075407,0.03,243.86,243.82,19.45342736]
[1738252075408,0.03,243.86,243.8,19.45342736]
[1738252075599,19.48342736,243.86,243.78,19.45342736]
[1738252075805,0.76901787,243.85,243.78,19.45342736]
[1738252076010,19.45342736,243.84,243.76,19.45342736]
[1738252076190,19.45342736,243.82,243.75,0.29641786]
[1738252076512,19.45342736,243.82,243.76,4.1023]
[1738252077216,19.45342736,243.85,243.77,19.74995214]
[1738252077392,0.03,243.86,243.8,19.45342736]
[1738252077712,19.48342736,243.86,243.78,19.45342736]
[1738252078033,19.48342736,243.86,243.79,0.29635362]
[1738252078403,19.48342736,243.86,243.78,0.29635363]
[1738252078404,19.45342736,243.84,243.78,0.29635363]
[1738252078599,20.22251971,243.83,243.76,0.29635363]
[1738252078807,19.45342736,243.84,243.77,4.1021]
[1738252078998,0.03,243.86,243.77,4.1021]
[1738252078999,19.45342736,243.85,243.77,23.55552736]
[1738252079193,19.48342736,243.86,243.78,19.74990518]
[1738252079511,19.45342736,243.85,243.78,19.74990518]
[1738252079814,19.45342736,243.84,243.78,0.29647782]
[1738252080316,20.25243318,243.86,243.78,0.29647782]
[1738252080493,19.45342736,243.83,243.77,4.1021]
[1738252080690,0.03,243.86,243.79,19.45342736]
[1738252081616,0.03,243.86,243.85,19.45342736]
[1738252082428,0.03,243.86,243.85,23.55422736]
[1738252083036,20.22212028,244.0,243.85,23.55422736]
[1738252083221,19.45342736,243.98,243.9,19.45342736]
[1738252083427,0.76869292,244.0,243.92,19.45342736]
[1738252083428,19.45342736,244.0,243.92,19.45342736]
[1738252083600,19.45342736,244.0,243.93,0.29549745]
[1738252084203,19.45342736,243.96,243.88,19.45342736]
[1738252084421,19.45342736,243.96,243.89,0.29569657]
[1738252084726,19.45342736,243.96,243.88,23.55362736]
[1738252084896,19.45342736,243.92,243.84,19.45342736]
[1738252085099,19.45342736,243.92,243.85,0.29602771]
[1738252086025,19.45342736,244.02,243.9,19.45342736]
[1738252086199,19.45342736,244.0,243.92,19.45342736]
[1738252086521,20.22204148,244.0,243.92,19.45342736]
[1738252086723,20.22204148,244.0,243.93,4.0995]
[1738252087021,19.45342736,243.96,243.88,19.7489955]
[1738252087318,19.45342736,243.92,243.85,19.45342736]
[1738252087516,19.45342736,243.94,243.86,0.29585607]
[1738252087712,0.76876962,243.93,243.85,19.45342736]
[1738252087891,19.45342736,243.9,243.82,19.45342736]
[1738252088092,19.45342736,243.94,243.85,19.45342736]
[1738252088314,19.45342736,243.94,243.86,0.29590881]
[1738252088519,0.768761,243.93,243.86,0.29590412]
[1738252088908,19.45342736,243.89,243.83,4.101]
[1738252089107,19.45342736,243.89,243.81,19.74934241]
[1738252089108,19.45342736,243.86,243.81,4.1014]
[1738252089541,19.45342736,243.88,243.85,0.063]
[1738252089836,0.76895639,243.87,243.85,0.063]
[1738252090651,19.45342736,243.86,243.85,0.063]
[1738252091018,32.86527589,243.86,243.85,0.063]
[1738252091540,1.0,243.85,243.72,0.063]
[1738252091743,0.76926217,243.85,243.79,19.45342736]
[1738252091920,0.76926217,243.86,243.81,19.45342736]
[1738252092239,0.76898978,243.88,243.81,19.45342736]
[1738252092428,0.76898978,243.88,243.72,30.07082664]
[1738252092429,19.45342736,243.87,243.79,19.45342736]
[1738252092624,19.45342736,243.85,243.77,19.45342736]
[1738252092943,19.45342736,243.79,243.72,0.063]
[1738252093243,19.45342736,243.81,243.74,19.45342736]
[1738252093441,0.76918444,243.8,243.72,23.61942736]
[1738252093630,0.76918444,243.8,243.73,0.29690229]
[1738252093833,0.76918444,243.8,243.72,23.61942736]
[1738252094035,19.45342736,243.75,243.72,0.063]
[1738252094342,0.76942392,243.74,243.72,0.063]
[1738252095241,19.45342736,243.75,243.72,0.063]
[1738252095419,0.76932105,243.74,243.72,0.063]
[1738252095621,0.76936744,243.78,243.72,0.063]
[1738252095942,0.7692832,243.78,243.74,19.45342736]
[1738252096129,0.7692832,243.78,243.72,0.063]
[1738252097326,19.45342736,243.77,243.72,0.063]
[1738252097647,0.76930637,243.76,243.72,0.063]
[1738252097849,0.76930104,243.78,243.72,0.063]
[1738252098060,19.45342736,243.81,243.74,19.45342736]
[1738252098219,0.76921662,243.8,243.76,19.45342736]
[1738252098419,0.76918696,243.87,243.78,19.45342736]
[1738252098623,0.76918696,243.87,243.82,19.45342736]
[1738252099249,0.76918696,243.87,243.8,19.45342736]
[1738252099449,19.45342736,243.86,243.78,19.45342736]
[1738252099742,0.76909072,243.85,243.8,19.45342736]
[1738252100129,0.76902308,243.87,243.8,23.55502736]
[1738252100333,0.76895102,243.89,243.86,19.45342736]
[1738252100538,0.03,243.92,243.88,19.45342736]
[1738252100743,0.03,243.92,243.81,0.29628415]
[1738252100744,0.03,243.92,243.86,19.45342736]
[1738252101834,19.48342736,243.92,243.86,19.45342736]
[1738252102161,0.03,243.92,243.86,19.45342736]
[1738252102449,0.03,243.92,243.8,10.2543]
[1738252102450,0.03,243.92,243.88,19.45342736]
[1738252102855,0.03,243.92,243.83,0.29589598]
[1738252102856,0.03,243.92,243.86,19.45342736]
[1738252103067,0.79882816,243.92,243.86,19.45342736]
[1738252103242,0.03,243.92,243.86,19.45342736]
[1738252103957,0.03,243.92,243.82,4.1013]
[1738252103958,19.45342736,243.89,243.82,19.45342736]
[1738252104256,0.03,243.92,243.8,19.45342736]
[1738252104257,19.45342736,243.87,243.8,19.45342736]
[1738252104471,0.76904019,243.86,243.8,19.45342736]
[1738252104651,0.76904019,243.86,243.78,23.55532736]
[1738252105562,4.1006,243.87,243.8,19.45342736]
[1738252105854,0.03,243.92,243.84,19.45342736]
[1738252106060,0.03,243.92,243.88,19.45342736]
[1738252107562,0.03,243.92,243.9,19.45342736]
[1738252107769,0.03,243.92,243.91,0.29561774]
[1738252108637,0.03,243.92,243.83,6.445]
[1738252108638,0.03,243.92,243.86,19.45342736]
[1738252108856,0.03,243.92,243.84,19.45342736]
[1738252109037,0.79883823,243.92,243.84,23.85048593]
[1738252109458,0.79883823,243.92,243.84,19.74948593]
[1738252109761,19.45342736,243.89,243.82,19.45342736]
[1738252110555,0.76892284,243.88,243.8,19.45342736]
[1738252111071,19.45342736,243.85,243.78,19.45342736]
[1738252111361,0.76909337,243.84,243.76,19.45342736]
[1738252111663,0.76909337,243.84,243.76,19.75001953]
[1738252111863,4.87029337,243.84,243.76,19.45342736]
[1738252112066,0.76909337,243.84,243.78,19.45342736]
[1738252112245,4.86914486,243.89,243.83,19.45342736]
[1738252112565,0.76894486,243.89,243.83,19.45342736]
[1738252112974,24.32257222,243.89,243.81,19.45342736]
[1738252113149,19.45342736,243.87,243.79,19.45342736]
[1738252113348,0.76903495,243.86,243.79,19.45342736]
[1738252113763,4.86973495,243.86,243.77,19.45342736]
[1738252113966,19.45342736,243.85,243.77,19.45342736]
[1738252114174,19.45342736,243.85,243.72,10.3204]
[1738252114175,19.45342736,243.83,243.75,19.45342736]
[1738252114342,0.76915788,243.82,243.75,19.45342736]
[1738252114671,19.45342736,243.83,243.76,0.063]
[1738252114965,0.76912362,243.82,243.76,0.063]
[1738252115461,19.45342736,243.83,243.76,4.46196513]
[1738252115669,19.45342736,243.87,243.79,19.45342736]
[1738252115966,0.76904237,243.86,243.79,19.45342736]
[1738252116761,19.45342736,243.84,243.76,19.51642736]
[1738252117049,0.76912136,243.83,243.76,19.51642736]
[1738252118143,0.76912136,243.83,243.76,23.61872736]
[1738252118940,19.45342736,243.82,243.76,4.1653]
[1738252120381,0.76914306,243.81,243.76,4.1653]
[1738252120964,19.45342736,243.84,243.76,23.61872736]
[1738252121167,19.45342736,243.78,243.76,0.063]
[1738252121546,0.76926607,243.77,243.76,0.063]
[1738252122077,2.36936607,243.77,243.76,0.063]
[1738252122955,6.47156607,243.77,243.76,0.063]
[1738252123474,6.47156607,243.77,243.72,0.063]
[1738252123475,20.0,243.74,243.72,0.063]
[1738252123656,39.67649103,243.73,243.72,0.063]
[1738252123845,20.22306367,243.73,243.72,0.063]
[1738252125069,24.32596367,243.73,243.72,0.063]
[1738252125576,37.7378122,243.73,243.72,0.063]
[1738252125746,24.32596367,243.73,243.72,0.063]
[1738252126277,37.7378122,243.73,243.72,0.063]
[1738252127273,57.19123956,243.73,243.72,0.063]
[1738252127453,20.0,243.7,243.6,0.063]
[1738252127762,19.45342736,243.65,243.6,0.063]
[1738252127970,0.7697084,243.64,243.6,0.063]
[1738252128470,0.7697084,243.64,243.6,4.168]
[1738252128657,19.45342736,243.67,243.6,23.62142736]
[1738252128860,20.22313175,243.69,243.62,19.45342736]
[1738252129067,20.22313175,243.69,243.6,4.168]
[1738252129068,19.45342736,243.67,243.6,4.168]
[1738252129252,0.76973399,243.66,243.6,0.063]
[1738252129459,19.45342736,243.63,243.6,0.063]
[1738252129793,19.45342736,243.61,243.6,0.063]
[1738252130687,19.45342736,243.63,243.6,0.063]
[1738252130870,0.76987161,243.65,243.6,0.063]
[1738252130871,0.76978963,243.62,243.6,0.063]
[1738252131281,0.76974931,243.64,243.6,0.063]
[1738252131583,19.45342736,243.63,243.6,0.063]
[1738252131786,19.45342736,243.61,243.6,0.063]
[1738252132480,0.76986641,243.65,243.6,0.063]
[1738252132481,20.22331953,243.63,243.6,0.063]
[1738252132780,0.76989217,243.63,243.6,0.063]
[1738252133176,0.76973339,243.65,243.6,4.168]
[1738252134485,0.76973339,243.65,243.6,0.063]
[1738252135285,19.45342736,243.64,243.6,0.063]
[1738252135487,0.76980208,243.63,243.6,0.063]
[1738252135690,0.76976454,243.65,243.6,0.063]
[1738252135877,0.76976454,243.65,243.6,4.168]
[1738252136387,20.2231919,243.65,243.6,0.063]
[1738252136893,19.45342736,243.63,243.6,0.063]
[1738252137078,0.76980301,243.62,243.6,0.063]
[1738252137955,0.7698006,243.65,243.6,0.063]
[1738252138176,0.76966548,243.66,243.62,19.45342736]
[1738252138481,0.76966548,243.66,243.6,4.168]
[1738252138482,0.76961926,243.68,243.64,19.45342736]
[1738252138686,0.76954953,243.7,243.64,19.45342736]
[1738252139170,19.45342736,243.69,243.6,23.62142736]
[1738252139375,0.76965431,243.68,243.6,23.62142736]
[1738252139562,19.45342736,243.67,243.6,23.62142736]
[1738252139763,0.76966888,243.66,243.6,23.62142736]
[1738252139958,19.45342736,243.63,243.6,0.063]
[1738252140167,0.76981268,243.62,243.6,0.063]
[1738252142159,19.45342736,243.61,243.6,0.063]
[1738252142574,33.86527589,243.61,243.6,0.063]
[1738252142784,53.31870325,243.61,243.6,0.063]
[1738252143198,1.0,243.56,243.51,0.063]
[1738252143399,1.0,243.54,243.51,0.063]
[1738252143562,32.86527589,243.52,243.51,0.063]
[1738252144268,19.45342736,243.52,243.51,0.063]
[1738252144473,19.45342736,243.54,243.51,0.063]
[1738252144693,0.77011088,243.53,243.51,0.063]
[1738252144871,19.45342736,243.52,243.51,0.063]
[1738252145189,32.86527589,243.52,243.51,0.063]
[1738252145397,34.51757589,243.52,243.51,0.063]
[1738252145766,35.28788098,243.52,243.51,0.063]
[1738252146297,34.41184853,243.48,243.47,0.063]
[1738252146461,15.41184853,243.46,243.45,0.0001]
[1738252146666,35.63593669,243.46,243.45,0.0001]
[1738252147990,13.41184853,243.38,243.36,0.063]
[1738252148205,2.0,243.39,243.36,0.063]
[1738252148206,58.19843307,243.37,243.36,0.063]
[1738252148675,37.74500571,243.37,243.36,0.063]
[1738252149595,20.0,243.33,243.25,0.063]
[1738252149794,19.45342736,243.28,243.25,0.063]
[1738252150090,0.77085811,243.27,243.25,0.063]
[1738252151102,0.7708793,243.29,243.25,0.063]
[1738252151986,0.77087328,243.34,243.28,19.45342736]
[1738252152174,0.77087328,243.34,243.3,19.45342736]
[1738252152379,0.77087328,243.34,243.25,10.3404]
[1738252152380,20.0,243.3,243.25,0.063]
[1738252152691,19.45342736,243.26,243.25,0.063]
[1738252153880,32.86527589,243.26,243.25,0.063]
[1738252154197,37.74720403,243.26,243.25,0.063]
[1738252155086,38.74720403,243.26,243.25,0.063]
[1738252155286,20.0,243.23,243.17,0.063]
[1738252155611,19.45342736,243.18,243.17,0.063]
[1738252156596,20.22474912,243.18,243.17,0.063]
[1738252158693,33.63659765,243.18,243.17,0.063]
[1738252160595,20.22474912,243.18,243.17,0.063]
[1738252161814,20.77132176,243.18,243.17,0.063]
[1738252162016,40.22474912,243.18,243.17,0.063]
[1738252162590,20.77132176,243.18,243.17,0.063]
[1738252162791,0.77132176,243.18,243.17,0.063]
[1738252162991,0.77114617,243.21,243.17,4.1752]
[1738252163401,0.77106431,243.23,243.18,19.45342736]
[1738252163606,0.77106431,243.23,243.2,19.45342736]
[1738252163809,0.77096451,243.27,243.2,19.45342736]
[1738252165111,4.88166451,243.27,243.2,19.45342736]
[1738252165422,19.45342736,243.26,243.17,23.62862736]
[1738252165621,0.77102338,243.25,243.17,19.51642736]
[1738252165814,19.45342736,243.24,243.17,0.063]
[1738252165995,19.45342736,243.22,243.17,0.063]
[1738252166200,0.77117307,243.21,243.17,0.063]
[1738252166630,4.88277307,243.21,243.17,0.063]
[1738252166817,19.45342736,243.2,243.17,0.063]
[1738252167139,0.77111829,243.19,243.17,0.063]
[1738252168397,19.45342736,243.18,243.17,0.063]
[1738252168596,23.56552736,243.18,243.17,0.063]
[1738252169112,0.77127377,243.22,243.17,0.063]
[1738252169610,0.77127377,243.22,243.17,4.1753]
[1738252169822,0.77101646,243.24,243.2,19.45342736]
[1738252170121,0.8009596,243.27,243.2,19.45342736]
[1738252170501,0.8009596,243.27,243.22,19.45342736]
[1738252170898,0.03,243.27,243.26,19.45342736]
[1738252171093,0.03,243.27,243.24,19.45342736]
[1738252171297,0.80083446,243.27,243.22,19.45342736]
[1738252171899,0.03,243.27,243.24,19.45342736]
[1738252172103,0.03,243.27,243.26,19.45342736]
[1738252174529,19.48342736,243.27,243.19,19.45342736]
[1738252174737,0.77090344,243.26,243.19,23.56532736]
[1738252174904,0.77090344,243.26,243.21,19.45342736]
[1738252175112,0.03,243.27,243.25,19.45342736]
[1738252176022,0.03,243.27,243.21,19.45342736]
[1738252176220,0.80088871,243.27,243.19,4.41181925]
[1738252176429,0.03,243.27,243.23,19.45342736]
[1738252176625,0.03,243.27,243.25,19.45342736]
[1738252177027,0.03,243.27,243.26,4.41063759]
[1738252177923,0.03,243.27,243.25,19.45342736]
[1738252178323,0.03,243.27,243.21,0.29986426]
[1738252178324,0.03,243.27,243.21,19.45342736]
[1738252178510,0.80091211,243.27,243.21,23.56502736]
[1738252179234,0.80091211,243.27,243.23,19.45342736]
[1738252179434,0.03,243.27,243.23,19.45342736]
[1738252180149,0.03,243.27,243.25,19.45342736]
[1738252180449,0.03,243.27,243.23,19.45342736]
[1738252181119,0.03,243.27,243.23,23.56452736]
[1738252181329,0.80080308,243.27,243.21,23.56492736]
[1738252183243,0.80080308,243.27,243.21,19.45342736]
[1738252183548,19.45342736,243.25,243.17,0.063]
[1738252183722,0.77103905,243.24,243.17,0.063]
[1738252184747,0.77103905,243.24,243.18,19.45342736]
[1738252185240,0.77098144,243.23,243.2,19.45342736]
[1738252185410,0.77097376,243.26,243.22,19.45342736]
[1738252185611,0.77097376,243.26,243.2,19.45342736]
[1738252185612,4.88177376,243.26,243.2,19.45342736]
[1738252185847,24.33520112,243.26,243.17,43.62872736]
[1738252186017,20.22440112,243.26,243.19,19.45342736]
[1738252186219,0.77097376,243.26,243.21,19.45342736]
[1738252186440,0.77093461,243.25,243.21,19.45342736]
[1738252186743,0.03,243.27,243.21,19.45342736]
[1738252186943,0.80095202,243.27,243.21,19.45342736]
[1738252188549,19.45342736,243.25,243.17,19.51642736]
[1738252188724,0.77102728,243.24,243.18,19.45342736]
[1738252189817,0.77102728,243.24,243.18,23.56552736]
[1738252190043,0.77101683,243.23,243.2,19.45342736]